fUST/lending_fUST_20240430
["ID","MTS","AMOUNT","RATE_DAILY","PERIOD"]
[324958847,1714469449953,-500.0,0.00032328,2]
[324958848,1714469449962,-1006.99,0.00032328,2]
[324958849,1714469449971,-500.0,0.00032328,2]
[324958850,1714469449981,-500.0,0.00032328,2]
[324958851,1714469449990,-500.0,0.00032328,2]
[324958852,1714469449999,-500.0,0.00032328,2]
[324958853,1714469450008,-500.0,0.00032328,2]
[324958854,1714469450018,-500.0,0.00032328,2]
[324958855,1714469450027,-500.0,0.00032328,2]
[324958856,1714469450036,-652.12,0.00032328,2]
[324958857,1714469450045,-1498.55,0.00032328,2]
[324958858,1714469450054,-672.86,0.00032328,2]
[324958859,1714469450063,-500.0,0.00032328,2]
[324958860,1714469450073,-500.0,0.00032328,2]
[324958861,1714469450082,-720.2,0.00032328,2]
[324958862,1714469450091,-481.500133,0.00032328,2]
[324958863,1714469450100,-481.500133,0.00032328,2]
[324958864,1714469450109,-574.86,0.00032328,2]
[324958865,1714469450118,-509.77,0.00032328,2]
[324958866,1714469450127,-500.0,0.00032328,2]
[324958867,1714469450136,-500.0,0.00032328,2]
[324958868,1714469450145,-595.4509549,0.00032328,2]
[324958869,1714469450154,-511.97,0.00032328,2]
[324958870,1714469450163,-500.0,0.00032328,2]
[324958871,1714469450172,-500.0,0.00032328,2]
[324958872,1714469450181,-638.59,0.00032328,2]
[324958873,1714469450191,-287.463919,0.00032328,2]
[324958874,1714469450199,-500.0,0.00032328,2]
[324958875,1714469450208,-287.463919,0.00032328,2]
[324958876,1714469450217,-652.87,0.00032328,2]
[324958877,1714469450227,-500.0,0.00032328,2]
[324958878,1714469450236,-573.79,0.00032328,2]
[324958879,1714469450247,-500.0,0.00032328,2]
[324958880,1714469450258,-500.0,0.00032328,2]
[324958881,1714469450268,-500.0,0.00032328,2]
[324958882,1714469450277,-500.0,0.00032328,2]
[324958883,1714469450288,-151.423506,0.00032328,2]
[324958884,1714469450297,-500.0,0.00032328,2]
[324958885,1714469450306,-500.0,0.00032328,2]
[324958886,1714469450315,-1738.04,0.00032328,2]
[324958887,1714469450325,-500.0,0.00032328,2]
[324958888,1714469450334,-151.001391,0.00032328,2]
[324958889,1714469450343,-911.25,0.00032328,2]
[324958890,1714469450351,-1324.85,0.00032328,2]
[324958891,1714469450360,-500.0,0.00032328,2]
[324958892,1714469450369,-1440.78,0.00032328,2]
[324958893,1714469450378,-594.83,0.00032328,2]
[324958894,1714469450387,-151.0,0.00032328,2]
[324958895,1714469450396,-500.0,0.00032328,2]
[324958896,1714469450406,-503.98,0.00032328,2]
[324958897,1714469450415,-500.0,0.00032328,2]
[324958898,1714469450424,-903.11,0.00032328,2]
[324958899,1714469450433,-321.55164583,0.00032328,2]
[324958900,1714469450442,-500.0,0.00032328,2]
[324958901,1714469450451,-2770.12,0.00032328,2]
[324958902,1714469450460,-500.0,0.00032328,2]
[324958903,1714469450469,-500.0,0.00032328,2]
[324958904,1714469450478,-151.0,0.00032328,2]
[324958905,1714469450487,-2111.64,0.00032328,2]
[324958906,1714469450496,-630.12,0.00032328,2]
[324958907,1714469450505,-500.0,0.00032328,2]
[324958908,1714469450514,-500.0,0.00032328,2]
[324958909,1714469450523,-241.674438,0.00032328,2]
[324958910,1714469450533,-241.674438,0.00032328,2]
[324958911,1714469450544,-500.0,0.00032328,2]
[324958912,1714469450554,-1752.96,0.00032328,2]
[324958913,1714469450563,-500.0,0.00032328,2]
[324958914,1714469450572,-500.0,0.00032328,2]
[324958915,1714469450582,-151.0,0.00032328,2]
[324958916,1714469450591,-1042.63,0.00032328,2]
[324958917,1714469450600,-151.0,0.00032328,2]
[324958918,1714469450610,-1269.88,0.00032328,2]
[324958919,1714469450619,-151.0,0.00032328,2]
[324958920,1714469450628,-500.0,0.00032328,2]
[324958921,1714469450637,-242.50183676,0.00032328,2]
[324958922,1714469450646,-500.0,0.00032328,2]
[324958923,1714469450656,-500.0,0.00032328,2]
[324958924,1714469450665,-500.0,0.00032328,2]
[324958925,1714469450675,-500.0,0.00032328,2]
[324958926,1714469450684,-500.0,0.00032328,2]
[324958927,1714469450693,-1004.01,0.00032328,2]
[324958928,1714469450702,-500.0,0.00032328,2]
[324958929,1714469450712,-657.48,0.00032328,2]
[324958930,1714469450721,-714.47,0.00032328,2]
[324958931,1714469450730,-1223.237364,0.00032328,2]
[324958932,1714469450740,-3447.14,0.00032328,2]
[324958933,1714469450749,-1379.28,0.00032328,2]
[324958934,1714469450758,-500.0,0.00032328,2]
[324958935,1714469450767,-1223.237364,0.00032328,2]
[324958936,1714469450777,-577.33,0.00032328,2]
[324958937,1714469450787,-500.0,0.00032328,2]
[324958938,1714469450796,-282.553716,0.00032328,2]
[324958939,1714469450806,-282.553716,0.00032328,2]
[324958940,1714469450815,-500.0,0.00032328,2]
[324958941,1714469450824,-527.95,0.00032328,2]
[324958942,1714469450834,-527.95,0.00032328,2]
[324958943,1714469450843,-516.200641,0.00032328,2]
[324958944,1714469450852,-151.0,0.00032328,2]
[324958945,1714469450862,-500.0,0.00032328,2]
[324958946,1714469450871,-500.0,0.00032328,2]
[324958947,1714469450880,-516.200641,0.00032328,2]
[324958948,1714469450889,-500.0,0.00032328,2]
[324958949,1714469450898,-261.48718366,0.00032328,2]
[324958950,1714469450908,-500.0,0.00032328,2]
[324958951,1714469450917,-151.0,0.00032328,2]
[324958952,1714469450926,-500.0,0.00032328,2]
[324958953,1714469450935,-500.0,0.00032328,2]
[324958954,1714469450945,-151.0,0.00032328,2]
[324958955,1714469450954,-2622.44,0.00032328,2]
[324958956,1714469450963,-500.0,0.00032328,2]
[324958957,1714469450972,-500.0,0.00032328,2]
[324958958,1714469450981,-500.0,0.00032328,2]
[324958959,1714469450991,-532.84,0.00032328,2]
[324958960,1714469451000,-500.0,0.00032328,2]
[324958961,1714469451009,-500.0,0.00032328,2]
[324958962,1714469451019,-626.38,0.00032328,2]
[324958963,1714469451028,-1657.029011,0.00032328,2]
[324958964,1714469451039,-433.29266876,0.00032328,2]
[324958965,1714469451048,-821.44,0.00032328,2]
[324958966,1714469451057,-1657.029011,0.00032328,2]
[324958967,1714469451067,-603.01,0.00032328,2]
[324958968,1714469451076,-685.27,0.00032328,2]
[324958969,1714469451085,-151.0,0.00032328,2]
[324958970,1714469451095,-804.08,0.00032328,2]
[324958971,1714469451104,-151.0,0.00032328,2]
[324958972,1714469451114,-500.0,0.00032328,2]
[324958973,1714469451123,-513.6,0.00032328,2]
[324958974,1714469451132,-500.0,0.00032328,2]
[324958975,1714469451142,-500.0,0.00032328,2]
[324958976,1714469451151,-560.38,0.00032328,2]
[324958977,1714469451160,-151.0,0.00032328,2]
[324958978,1714469451170,-500.0,0.00032328,2]
[324958979,1714469451179,-500.0,0.00032328,2]
[324958980,1714469451188,-151.0,0.00032328,2]
[324958981,1714469451199,-1006.5,0.00032328,2]
[324958982,1714469451207,-172.877711,0.00032328,2]
[324958983,1714469451217,-500.0,0.00032328,2]
[324958984,1714469451226,-500.0,0.00032328,2]
[324958985,1714469451237,-1353.38,0.00032328,2]
[324958986,1714469451250,-172.877711,0.00032328,2]
[324958987,1714469451259,-505.64,0.00032328,2]
[324958988,1714469451268,-500.0,0.00032328,2]
[324958989,1714469451278,-3236.72,0.00032328,2]
[324958990,1714469451291,-8014.06,0.00032328,2]
[324958991,1714469451300,-500.0,0.00032328,2]
[324958992,1714469451310,-500.0,0.00032328,2]
[324958993,1714469451321,-1897.04,0.00032328,2]
[324958994,1714469451331,-921.22,0.00032328,2]
[324958995,1714469451340,-500.0,0.00032328,2]
[324958996,1714469451349,-151.0,0.00032328,2]
[324958997,1714469451359,-151.0,0.00032328,2]
[324958998,1714469451368,-500.0,0.00032328,2]
[324958999,1714469451377,-566.94421964,0.00032328,2]
[324959000,1714469451387,-300.0,0.00032328,2]
[324959001,1714469451396,-500.0,0.00032328,2]
[324959002,1714469451406,-500.0,0.00032328,2]
[324959003,1714469451415,-500.0,0.00032328,2]
[324959004,1714469451424,-500.0,0.00032328,2]
[324959005,1714469451434,-500.0,0.00032328,2]
[324959006,1714469451443,-500.0,0.00032328,2]
[324959007,1714469451452,-500.0,0.00032328,2]
[324959008,1714469451461,-1137.4,0.00032328,2]
[324959009,1714469451471,-581.433656,0.00032328,2]
[324959010,1714469451480,-151.0,0.00032328,2]
[324959011,1714469451489,-500.0,0.00032328,2]
[324959012,1714469451499,-581.433656,0.00032328,2]
[324959013,1714469451508,-928.29,0.00032328,2]
[324959014,1714469451517,-500.0,0.00032328,2]
[324959015,1714469451526,-500.0,0.00032328,2]
[324959016,1714469451537,-3242.44,0.00032328,2]
[324959017,1714469451548,-583.303269,0.00032328,2]
[324959018,1714469451557,-921.307316,0.00032328,2]
[324959019,1714469451566,-466.8243633,0.00032328,2]
[324959020,1714469453122,-150.0,0.00028951,2]
[324959021,1714469453132,-3852.76366909,0.00031768,3]
[324959022,1714469453250,-241.13611523,0.00020913,2]
[324959023,1714469453259,-1422.0271376,0.00031768,3]
[324959037,1714470327634,308.84790387,9.999e-05,2]
[324959039,1714470570230,-3000.0,0.00017847,2]
[324959040,1714470570252,-189.3964787,0.00018,2]
[324959041,1714470570271,-163.104642,0.00018103,2]
[324959042,1714470570291,-3051.21388193,0.00018429,2]
[324959043,1714470570310,-603.84859883,0.00018737,2]
[324959044,1714470570332,-14367.4662454,0.00018738,2]
[324959045,1714470570351,-298.37113025,0.00018773,2]
[324959046,1714470570370,-7283.2037407,0.00018873,2]
[324959047,1714470570390,-1174.92643806,0.000189,2]
[324959048,1714470570408,-305.514767,0.0001901,2]
[324959049,1714470570428,-2000.0,0.000199,2]
[324959050,1714470570449,-430.08069267,0.000199,2]
[324959051,1714470570468,-320.07,0.0001999,3]
[324959052,1714470570487,-160.04,0.0001999,3]
[324959053,1714470570508,-800.22,0.0001999,3]
[324959054,1714470570527,-308.22783181,0.00019997,2]
[324959055,1714470570546,-155.07864978,0.00019998,2]
[324959056,1714470570566,-287.40550603,0.00019998,2]
[324959057,1714470570585,-154.9402763,0.00019998,2]
[324959058,1714470570606,-3081.33184346,0.00019998,2]
[324959059,1714470570628,-662.65322638,0.00019998,2]
[324959060,1714470570649,-1904.97856926,0.00019998,2]
[324959061,1714470570668,-355.96806476,0.00019998,2]
[324959062,1714470570687,-155.04940114,0.00019998,2]
[324959063,1714470570711,-154.81422293,0.00019998,2]
[324959064,1714470570730,-362.18450158,0.00019998,2]
[324959065,1714470570751,-497.39509606,0.00019998,2]
[324959066,1714470570770,-1091.35500072,0.00019998,2]
[324959067,1714470570789,-154.84515485,0.00019998,2]
[324959068,1714470570807,-161.65844721,0.00019998,2]
[324959069,1714470570827,-1202.53293628,0.00019998,2]
[324959070,1714470570850,-884.2224895,0.00019998,2]
[324959071,1714470570869,-8377.59175511,0.00019998,2]
[324959072,1714470570888,-1621.09215219,0.00019998,2]
[324959073,1714470570907,-980.56647278,0.00019998,2]
[324959074,1714470570927,-384.5867347,0.00019998,2]
[324959075,1714470570947,-1877.98244555,0.00019998,2]
[324959076,1714470570967,-228.44373895,0.00019998,2]
[324959077,1714470570986,-538.89336842,0.00019998,2]
[324959078,1714470571006,-157.80708891,0.00019998,2]
[324959079,1714470571025,-241.36985952,0.00019999,2]
[324959080,1714470571046,-895.06792294,0.00019999,2]
[324959081,1714470571066,-50349.02601847,0.0002,2]
[324959191,1714470634377,-1634.28097106,0.000199,2]
[324959462,1714470639478,-365.71902894,0.000199,2]
[324959463,1714470639487,-2807.21953425,0.00019998,2]
[324959464,1714470639497,-190.41841681,0.00019999,2]
[324959465,1714470639507,-603.75411,0.00019999,2]
[324959466,1714470639518,-3051.21388193,0.00019999,2]
[324959467,1714470639527,-11562.90948992,0.0002,2]
[324959468,1714470639538,-264.51074144,0.0002,2]
[324959470,1714470639549,-17823.55375017,0.0002,2]
[324959472,1714470639566,-241.71320654,0.0002,2]
[324959473,1714470639575,-222.89300144,0.0002,2]
[324959475,1714470639584,-67426.19859378,0.0002,2]
[324959477,1714470639594,-329.99389325,0.0002,2]
[324959479,1714470639603,-154.79876161,0.0002,2]
[324959481,1714470639612,-10481.54893926,0.0002,2]
[324959483,1714470639622,-200.0,0.0002,2]
[324959484,1714470639632,-278.367607,0.0002,2]
[324959486,1714470639644,-24651.9,0.0002,2]
[324959487,1714470639653,-160.436186,0.00020201,2]
[324959488,1714470639662,-483.59455737,0.00020912,4]
[324959489,1714470639672,-155.08097712,0.00020912,4]
[324959490,1714470639681,-298.37113018,0.00021707,2]
[324959491,1714470639690,-613.2773995,0.00021918,2]
[324959492,1714470639699,-10000.0,0.00021918,2]
[324959493,1714470639708,-305.6041892,0.00022,2]
[324959494,1714470639721,-197.21049635,0.00022,2]
[324959495,1714470639731,-197.21049635,0.00022,2]
[324959496,1714470639740,-197.21049635,0.00022,2]
[324959497,1714470639749,-197.21049635,0.00022,2]
[324959498,1714470639758,-197.21049635,0.00022,2]
[324959499,1714470639768,-197.21049635,0.00022,2]
[324959500,1714470639777,-367.69576,0.00022466,2]
[324959501,1714470639786,-178.983248,0.00022466,2]
[324959502,1714470639797,-430.08069265,0.00022982,2]
[324959503,1714470639811,-1370.77204514,0.00023,2]
[324959504,1714470639821,-1174.92643806,0.000239,2]
[324959505,1714470639830,-693.45686249,0.00024,2]
[324959506,1714470639839,-298.37113018,0.0002464,2]
[324959507,1714470639849,-500.0,0.00024657,2]
[324959508,1714470639858,-380.0,0.00024658,2]
[324959509,1714470639867,-329.76997376,0.00024893,2]
[324959510,1714470639877,-155.21372883,0.00024977,2]
[324959511,1714470639886,-154.79876161,0.00025,2]
[324959512,1714470639896,-154.79876161,0.00025,2]
[324959513,1714470639905,-224.44108597,0.00025364,2]
[324959514,1714470639915,-329.76997376,0.00025406,2]
[324959515,1714470639924,-153.89214861,0.00025656,2]
[324959516,1714470639933,-1547.90345751,0.0002567,2]
[324959517,1714470639942,-157.73975449,0.0002585,2]
[324959518,1714470639952,-620.00017978,0.00025958,2]
[324959519,1714470639961,-152.90057792,0.00025982,2]
[324959520,1714470639971,-3345.99777968,0.00026,2]
[324959521,1714470639980,-430.08069265,0.00026064,2]
[324959522,1714470639990,-157.73975449,0.00026131,2]
[324959523,1714470639999,-153.89214861,0.00026184,2]
[324959524,1714470640008,-152.90057792,0.0002691,2]
[324959525,1714470640018,-8529.21181525,0.00027,2]
[324959526,1714470640027,-155.21372883,0.00027246,2]
[324959527,1714470640037,-620.00000899,0.00027256,2]
[324959528,1714470640047,-152.79752245,0.00027287,2]
[324959529,1714470640057,-166.666666,0.00027397,2]
[324959530,1714470640066,-155.21372883,0.00027468,2]
[324959531,1714470640075,-329.76997376,0.00027483,2]
[324959532,1714470640084,-298.37113018,0.00027574,3]
[324959533,1714470640093,-69782.12015,0.000277,3]
[324959534,1714470640103,-152.90057792,0.00027997,2]
[324959535,1714470640113,-220.93587945,0.00028,2]
[324959536,1714470640122,-166.666666,0.00028038,2]
[324959537,1714470640131,-329.76997376,0.00028124,2]
[324959538,1714470640141,-800.3,0.00028155,3]
[324959539,1714470640150,-155.21372883,0.00028215,2]
[324959540,1714470640160,-157.73975449,0.00028294,2]
[324959541,1714470640170,-152.90057792,0.00028479,2]
[324959542,1714470640179,-367.69576,0.00028493,2]
[324959543,1714470640188,-620.00000045,0.00028619,2]
[324959544,1714470640197,-166.666666,0.00028679,2]
[324959545,1714470640206,-329.76997376,0.00028706,2]
[324959546,1714470640215,-154.79876161,0.00029,3]
[324959547,1714470640224,-157.73975449,0.00029087,2]
[324959548,1714470640233,-800.3,0.00029107,3]
[324959549,1714470640243,-430.08069265,0.00029146,2]
[324959550,1714470640252,-152.79752245,0.00029191,2]
[324959551,1714470640261,-329.76997376,0.00029224,2]
[324959552,1714470640270,-152.79752245,0.0002923,2]
[324959553,1714470640279,-166.666666,0.00029321,2]
[324959554,1714470640288,-417.0,0.00029384,2]
[324959555,1714470640298,-150.0,0.00029384,2]
[324959556,1714470640313,-329.76997376,0.0002941,2]
[324959557,1714470640322,-329.76997376,0.00029596,2]
[324959558,1714470640331,-152.90057792,0.00029904,2]
[324959559,1714470640341,-166.666666,0.00029962,2]
[324959560,1714470640350,-154.79876161,0.0003,4]
[324959561,1714470640359,-1900.02434615,0.0003,4]
[324959562,1714470640368,-187.0,0.0003,2]
[324959563,1714470640377,-39822.03,0.0003,2]
[324959564,1714470640386,-800.3,0.00030059,3]
[324959565,1714470640395,-329.76997376,0.00030111,7]
[324959566,1714470640404,-155.21372883,0.0003018,7]
[324959567,1714470640413,-329.76997376,0.00030319,7]
[324959568,1714470640423,-298.37113018,0.00030508,5]
[324959569,1714470640432,-166.666666,0.00030603,2]
[324959571,1714470640441,-150.0,0.00030999,2]
[324959572,1714470640450,-800.3,0.00031012,5]
[324959573,1714470640459,-152.90057792,0.00031233,7]
[324959574,1714470640468,-152.90057792,0.00031362,7]
[324959575,1714470640478,-153.89214861,0.00031391,7]
[324959576,1714470640486,-155.21372883,0.00031473,7]
[324959577,1714470640496,-329.76997376,0.00031671,7]
[324959578,1714470640506,-2101.68210532,0.00031768,2]
[324959579,1714470640516,-191.54103763,0.00031768,4]
[324959580,1714470640525,-1452.62675219,0.00031768,4]
[324959581,1714470640535,-154.79876161,0.00031768,2]
[324959582,1714470640544,-2000.0,0.00031768,2]
[324959583,1714470640556,-154.79876161,0.00031768,4]
[324959584,1714470640566,-14239.91354927,0.00031768,7]
[324959585,1714470640575,-10146.51017242,0.00031768,30]
[324959586,1714470640584,-643.17591172,0.00031778,10]
[324959587,1714470640594,-202.16473977,0.00031778,2]
[324959588,1714470640603,-334.27940594,0.00031778,2]
[324959589,1714470640613,-9014.74074493,0.0003178,7]
[324959590,1714470640623,-500.0,0.0003178,2]
[324959591,1714470640637,-607.54793352,0.0003178,2]
[324959592,1714470640647,-500.0,0.0003178,2]
[324959593,1714470640656,-500.0,0.0003178,2]
[324959594,1714470640665,-164.34715649,0.0003178,2]
[324959595,1714470640674,-500.0,0.0003178,2]
[324959596,1714470640685,-500.0,0.0003178,2]
[324959597,1714470640694,-500.0,0.0003178,2]
[324959599,1714470640703,-500.0,0.0003178,2]
[324959601,1714470640712,-500.0,0.0003178,2]
[324959603,1714470640721,-500.0,0.0003178,2]
[324959605,1714470640731,-500.0,0.0003178,2]
[324959607,1714470640740,-500.0,0.0003178,2]
[324959609,1714470640750,-500.0,0.0003178,2]
[324959610,1714470640759,-500.0,0.0003178,2]
[324959611,1714470640768,-500.0,0.0003178,2]
[324959612,1714470640778,-500.0,0.0003178,2]
[324959613,1714470640788,-500.0,0.0003178,2]
[324959614,1714470640797,-507.99,0.0003178,2]
[324959615,1714470640808,-1603.04,0.0003178,2]
[324959616,1714470640818,-500.0,0.0003178,2]
[324959617,1714470640827,-500.0,0.0003178,2]
[324959618,1714470640837,-500.0,0.0003178,2]
[324959619,1714470640846,-500.0,0.0003178,2]
[324959620,1714470640855,-500.0,0.0003178,2]
[324959621,1714470640864,-500.0,0.0003178,2]
[324959622,1714470640874,-500.0,0.0003178,2]
[324959623,1714470640883,-500.0,0.0003178,2]
[324959624,1714470640893,-500.0,0.0003178,2]
[324959625,1714470640902,-526.96,0.0003178,2]
[324959626,1714470640911,-500.0,0.0003178,2]
[324959628,1714470640920,-500.0,0.0003178,2]
[324959630,1714470640930,-500.0,0.0003178,2]
[324959631,1714470640939,-500.0,0.0003178,2]
[324959633,1714470640949,-550.92,0.0003178,2]
[324959634,1714470640958,-500.0,0.0003178,2]
[324959635,1714470640967,-500.0,0.0003178,2]
[324959636,1714470640977,-500.0,0.0003178,2]
[324959637,1714470640987,-500.0,0.0003178,2]
[324959638,1714470640997,-500.0,0.0003178,2]
[324959639,1714470641006,-500.0,0.0003178,2]
[324959640,1714470641016,-545.26,0.0003178,2]
[324959641,1714470641025,-500.0,0.0003178,2]
[324959642,1714470641035,-500.0,0.0003178,2]
[324959643,1714470641044,-321.55164583,0.0003178,2]
[324959644,1714470641055,-500.0,0.0003178,2]
[324959645,1714470641064,-1164.06,0.0003178,2]
[324959646,1714470641073,-500.0,0.0003178,2]
[324959647,1714470641083,-500.0,0.0003178,2]
[324959648,1714470641092,-500.0,0.0003178,2]
[324959649,1714470641101,-500.0,0.0003178,2]
[324959650,1714470641110,-500.0,0.0003178,2]
[324959651,1714470641119,-500.0,0.0003178,14]
[324959652,1714470641128,-920.34,0.0003178,2]
[324959653,1714470641138,-820.41,0.0003178,2]
[324959654,1714470641147,-500.0,0.0003178,2]
[324959655,1714470641156,-720.18,0.0003178,2]
[324959656,1714470641166,-500.0,0.0003178,2]
[324959657,1714470641175,-500.0,0.0003178,2]
[324959658,1714470641185,-500.0,0.0003178,2]
[324959659,1714470641194,-500.0,0.0003178,2]
[324959660,1714470641203,-500.0,0.0003178,2]
[324959661,1714470641212,-500.0,0.0003178,2]
[324959662,1714470641221,-500.0,0.0003178,2]
[324959663,1714470641230,-500.0,0.0003178,2]
[324959664,1714470641239,-500.0,0.0003178,2]
[324959665,1714470641248,-500.0,0.0003178,2]
[324959666,1714470641257,-504.7752951,0.0003178,2]
[324959667,1714470641267,-574.18,0.0003178,2]
[324959668,1714470641276,-500.0,0.0003178,2]
[324959669,1714470641285,-500.0,0.0003178,2]
[324959670,1714470641294,-500.0,0.0003178,2]
[324959671,1714470641304,-500.0,0.0003178,2]
[324959672,1714470641313,-549.84,0.0003178,2]
[324959673,1714470641322,-500.0,0.0003178,2]
[324959674,1714470641331,-500.0,0.0003178,2]
[324959675,1714470641340,-500.0,0.0003178,2]
[324959676,1714470641350,-261.48718366,0.0003178,2]
[324959677,1714470641359,-500.0,0.0003178,2]
[324959678,1714470641368,-500.0,0.0003178,2]
[324959679,1714470641377,-1322.67,0.0003178,2]
[324959680,1714470641386,-1240.6,0.0003178,2]
[324959681,1714470641396,-500.0,0.0003178,2]
[324959682,1714470641405,-500.0,0.0003178,2]
[324959683,1714470641414,-500.0,0.0003178,2]
[324959684,1714470641423,-667.77,0.0003178,2]
[324959685,1714470641433,-552.76,0.0003178,2]
[324959686,1714470641442,-500.0,0.0003178,2]
[324959687,1714470641451,-923.08,0.0003178,2]
[324959688,1714470641460,-500.0,0.0003178,2]
[324959689,1714470641469,-500.0,0.0003178,2]
[324959690,1714470641478,-566.94421964,0.0003178,2]
[324959691,1714470641488,-500.0,0.0003178,2]
[324959692,1714470641497,-500.0,0.0003178,2]
[324959693,1714470641506,-500.0,0.0003178,2]
[324959694,1714470641516,-500.0,0.0003178,2]
[324959695,1714470641525,-500.0,0.0003178,2]
[324959696,1714470641534,-616.79,0.0003178,2]
[324959697,1714470641544,-500.0,0.0003178,2]
[324959698,1714470641556,-1373.67,0.0003178,2]
[324959699,1714470641565,-300.0,0.0003178,2]
[324959700,1714470641574,-500.0,0.0003178,2]
[324959701,1714470641584,-500.0,0.0003178,2]
[324959702,1714470641593,-500.0,0.0003178,2]
[324959703,1714470641602,-660.18,0.0003178,2]
[324959704,1714470641612,-500.0,0.0003178,2]
[324959705,1714470641621,-500.0,0.0003178,2]
[324959706,1714470641631,-597.77,0.0003178,2]
[324959707,1714470641643,-500.0,0.0003178,2]
[324959708,1714470641652,-500.0,0.0003178,2]
[324959709,1714470641662,-500.0,0.0003178,2]
[324959710,1714470641672,-500.0,0.0003178,2]
[324959711,1714470641681,-500.0,0.0003178,2]
[324959712,1714470641693,-500.0,0.0003178,2]
[324959713,1714470641703,-500.0,0.0003178,2]
[324959714,1714470641712,-500.0,0.0003178,2]
[324959715,1714470641722,-585.38,0.0003178,2]
[324959716,1714470641732,-500.0,0.0003178,2]
[324959717,1714470641741,-625.67,0.0003178,2]
[324959718,1714470641752,-1608.54,0.0003178,2]
[324959719,1714470641762,-500.0,0.0003178,2]
[324959720,1714470641771,-500.0,0.0003178,2]
[324959721,1714470641780,-500.0,0.0003178,2]
[324959722,1714470641790,-500.0,0.0003178,2]
[324959723,1714470641799,-500.0,0.0003178,2]
[324959724,1714470641812,-500.0,0.0003178,2]
[324959725,1714470641821,-501.65486159,0.0003178,2]
[324959726,1714470641831,-500.0,0.0003178,2]
[324959727,1714470641840,-1751.22,0.0003178,2]
[324959728,1714470641849,-500.0,0.0003178,2]
[324959729,1714470641859,-500.0,0.0003178,2]
[324959730,1714470641868,-500.0,0.0003178,2]
[324959731,1714470641878,-835.32,0.0003178,2]
[324959732,1714470641887,-500.0,0.0003178,2]
[324959733,1714470641897,-500.0,0.0003178,2]
[324959734,1714470641906,-500.0,0.0003178,2]
[324959735,1714470641916,-827.85,0.0003178,2]
[324959736,1714470641925,-500.0,0.0003178,2]
[324959737,1714470641935,-500.0,0.0003178,2]
[324959738,1714470641944,-2539.28,0.0003178,2]
[324959739,1714470641954,-500.0,0.0003178,2]
[324959740,1714470641963,-500.0,0.0003178,2]
[324959741,1714470641972,-1214.45,0.0003178,2]
[324959742,1714470641981,-1935.67,0.0003178,2]
[324959743,1714470641991,-912.61,0.0003178,2]
[324959744,1714470642000,-856.23,0.0003178,2]
[324959745,1714470642010,-500.0,0.0003178,2]
[324959746,1714470642020,-1380.75,0.0003178,2]
[324959747,1714470642029,-455.75602029,0.0003178,2]
[324959748,1714470642038,-500.0,0.0003178,2]
[324959749,1714470642048,-500.0,0.0003178,2]
[324959750,1714470642059,-500.0,0.0003178,2]
[324959751,1714470642069,-500.0,0.0003178,2]
[324959752,1714470642079,-500.0,0.0003178,2]
[324959753,1714470642089,-500.0,0.0003178,2]
[324959754,1714470642098,-500.0,0.0003178,2]
[324959755,1714470642108,-955.75,0.0003178,2]
[324959756,1714470642117,-500.0,0.0003178,2]
[324959757,1714470642127,-500.0,0.0003178,2]